fUST/lending_fUST_20240808
["ID","MTS","AMOUNT","RATE_DAILY","PERIOD"]
[334431796,1723093842253,-502.23178626,0.00027397,7]
[334431797,1723093842262,-500.0,0.00027397,7]
[334431798,1723093842271,-505.26955918,0.00027397,7]
[334431799,1723093842281,-1103.32,0.00027397,7]
[334431800,1723093842290,-500.0,0.00027397,7]
[334431801,1723093842300,-502.61623539,0.00027397,7]
[334431802,1723093842309,-500.0,0.00027397,7]
[334431803,1723093842319,-500.0,0.00027397,7]
[334431804,1723093842329,-500.0,0.00027397,7]
[334431805,1723093842338,-500.0,0.00027397,7]
[334431806,1723093842355,-459.18101564,0.00027397,7]
[334431807,1723093842364,-500.0,0.00027397,7]
[334431808,1723093842374,-500.82578428,0.00027397,7]
[334431809,1723093842383,-42.09072726,0.00027397,7]
[334431810,1723093842403,-1092.97927274,0.00027397,7]
[334431811,1723093842413,-799.33,0.00027397,7]
[334431812,1723093842423,-501.88127732,0.00027397,7]
[334431813,1723093842434,-79.51211171,0.00027397,7]
[334431829,1723093843595,-1095.32788829,0.00027397,7]
[334431830,1723093843605,-502.33797079,0.00027397,7]
[334431831,1723093843616,-504.29775937,0.00027397,7]
[334431832,1723093843626,-286.56181601,0.00027397,7]
[334431851,1723094268813,161.322183,0.00014247,2]
[334431856,1723094853781,166.301279,0.00014247,2]
[334431859,1723094951128,-174.91997391,0.00015851,2]
[334431860,1723094951150,-194.5599409,0.00016038,2]
[334431861,1723094951173,-155.30339518,0.00016095,2]
[334431862,1723094951196,-533.62513603,0.00017019,2]
[334431863,1723094951217,-78.68298324,0.00017019,2]
[334431919,1723095032897,-155.03127496,0.00016532,2]
[334431921,1723095032907,-194.43294902,0.00017019,2]
[334431923,1723095032917,-6443.21912045,0.00019167,2]
[334431924,1723095032927,-371.2726837,0.00019177,2]
[334431925,1723095032936,-385.76908016,0.00019451,2]
[334431926,1723095032945,-156.89555019,0.00019477,2]
[334431927,1723095032955,-300.0,0.00019546,2]
[334431928,1723095032964,-195.96938496,0.000199,2]
[334431929,1723095032974,-505.39577212,0.00019999,2]
[334431930,1723095032983,-289.82418402,0.0002,2]
[334431931,1723095032993,-252.54730103,0.00020721,2]
[334431932,1723095033003,-250.0,0.00021496,2]
[334431933,1723095033012,-1278.6896446,0.00021764,2]
[334431934,1723095033022,-183.0,0.0002202,2]
[334431935,1723095033031,-239.375909,0.00022065,2]
[334431936,1723095033041,-170.238506,0.00022641,2]
[334431937,1723095033051,-163.177906,0.00022667,2]
[334431938,1723095033060,-163.177906,0.00022962,2]
[334431940,1723095033070,-2270.79121472,0.00023,2]
[334431942,1723095033080,-500.0,0.00023121,2]
[334431943,1723095033090,-163.177906,0.00023257,2]
[334431944,1723095033099,-163.177906,0.00023553,2]
[334431945,1723095033109,-163.177906,0.00023848,2]
[334431946,1723095033119,-200.0,0.00026027,2]
[334431947,1723095033129,-477.58868685,0.00026979,2]
[334431948,1723095033138,-500.0,0.00026979,2]
[334431949,1723095033148,-448.27206794,0.00026979,2]
[334431950,1723095033158,-500.0,0.00026979,2]
[334431951,1723095033168,-500.0,0.00026979,2]
[334431952,1723095033177,-500.0,0.00026979,2]
[334431953,1723095033187,-502.34661954,0.00026979,2]
[334431954,1723095033197,-500.0,0.00026979,2]
[334431955,1723095033207,-500.0,0.00026979,2]
[334431956,1723095033216,-500.0,0.00026979,2]
[334431957,1723095033226,-500.0,0.00026979,2]
[334431958,1723095033235,-228.08509679,0.00026979,2]
[334431959,1723095033248,-500.0,0.00026979,2]
[334431960,1723095033258,-500.0,0.00026979,2]
[334431961,1723095033269,-500.0,0.00026979,2]
[334431962,1723095033280,-500.0,0.00026979,2]
[334431963,1723095033289,-500.0,0.00026979,2]
[334431964,1723095033299,-500.0,0.00026979,2]
[334431965,1723095033308,-500.0,0.00026979,2]
[334431966,1723095033318,-500.0,0.00026979,2]
[334431967,1723095033327,-500.0,0.00026979,2]
[334431968,1723095033337,-500.0,0.00026979,2]
[334431969,1723095033346,-500.0,0.00026979,2]
[334431970,1723095033356,-500.0,0.00026979,2]
[334431971,1723095033365,-21317.32469165,0.00027,2]
[334431979,1723095039034,-500.0,0.00026979,2]
[334431980,1723095039044,-500.0,0.00026979,2]
[334431981,1723095039054,-500.0,0.00026979,2]
[334431982,1723095039063,-500.0,0.00026979,2]
[334431983,1723095039073,-500.0,0.00026979,2]
[334431984,1723095039082,-500.0,0.00026979,2]
[334431985,1723095039091,-500.0,0.00026979,2]
[334431986,1723095039100,-500.0,0.00026979,2]
[334431987,1723095039110,-500.0,0.00026979,2]
[334431988,1723095039119,-500.0,0.00026979,2]
[334431989,1723095039129,-500.0,0.00026979,2]
[334431990,1723095039138,-500.0,0.00026979,2]
[334431991,1723095039147,-500.0,0.00026979,2]
[334431992,1723095039156,-500.0,0.00026979,2]
[334431993,1723095039166,-500.0,0.00026979,2]
[334431994,1723095039176,-500.0,0.00026979,2]
[334431995,1723095039185,-500.0,0.00026979,2]
[334431996,1723095039194,-500.0,0.00026979,2]
[334431997,1723095039204,-500.0,0.00026979,2]
[334431998,1723095039213,-500.0,0.00026979,2]
[334431999,1723095039222,-500.0,0.00026979,2]
[334432000,1723095039231,-500.0,0.00026979,2]
[334432001,1723095039241,-500.0,0.00026979,2]
[334432002,1723095039251,-500.0,0.00026979,2]
[334432003,1723095039260,-500.0,0.00026979,2]
[334432004,1723095039269,-500.0,0.00026979,2]
[334432005,1723095039278,-500.0,0.00026979,2]
[334432006,1723095039287,-415.40622722,0.00026979,2]
[334432007,1723095039297,-500.0,0.00026979,2]
[334432008,1723095039306,-500.0,0.00026979,2]
[334432009,1723095039315,-1168.65936254,0.00027,2]
[334432011,1723095039324,-242.5327,0.0002726,2]
[334432013,1723095039333,-155.92390148,0.00027287,2]
[334432014,1723095039343,-155.92390146,0.0002729,2]
[334432016,1723095039353,-155.92390146,0.00027292,2]
[334432017,1723095039362,-155.92390146,0.00027295,2]
[334432018,1723095039372,-2000.0,0.00027297,2]
[334432019,1723095039381,-155.92390146,0.00027297,2]
[334432020,1723095039390,-1405.22340357,0.00027297,2]
[334432021,1723095039399,-3000.0,0.000273,2]
[334432022,1723095039408,-174.583311,0.000273,2]
[334432023,1723095039418,-4067.661166,0.0002731,2]
[334432024,1723095039429,-15923.7605896,0.00027387,3]
[334432025,1723095039440,-12382.44,0.00027387,3]
[334432026,1723095039449,-150.01,0.00027396,2]
[334432027,1723095039458,-2430.75957275,0.00027396,2]
[334432028,1723095039468,-6000.19587876,0.00027396,2]
[334432029,1723095039478,-277.06226924,0.00027396,2]
[334432030,1723095039488,-291.23882018,0.00027397,2]
[334432031,1723095039499,-378.30432144,0.00027397,7]
[334432032,1723095039510,-300.705339,0.00027397,7]
[334432033,1723095039520,-500.0,0.00027397,7]
[334432034,1723095039532,-502.07903161,0.00027397,7]
[334432035,1723095039543,-500.0,0.00027397,7]
[334432036,1723095039553,-500.0,0.00027397,7]
[334432037,1723095039562,-500.82578428,0.00027397,7]
[334432038,1723095039572,-849.36,0.00027397,7]
[334432039,1723095039582,-500.0,0.00027397,7]
[334432040,1723095039592,-560.13,0.00027397,7]
[334432041,1723095039602,-500.0,0.00027397,7]
[334432042,1723095039615,-500.0,0.00027397,7]
[334432043,1723095039625,-500.0,0.00027397,7]
[334432044,1723095039636,-500.0,0.00027397,7]
[334432045,1723095039647,-259.20346555,0.00027397,7]
[334432046,1723095039658,-500.0,0.00027397,7]
[334432047,1723095039668,-500.0,0.00027397,7]
[334432048,1723095039677,-500.0,0.00027397,7]
[334432049,1723095039687,-201.53114008,0.00027397,7]
[334432050,1723095039697,-500.0,0.00027397,7]
[334432051,1723095039898,-599.42,0.00027397,7]
[334432052,1723095039909,-571.73,0.00027397,7]
[334432053,1723095039919,-500.0,0.00027397,7]
[334432054,1723095039928,-500.0,0.00027397,7]
[334432055,1723095039939,-500.0,0.00027397,7]
[334432056,1723095039948,-501.32944552,0.00027397,7]
[334432057,1723095039958,-500.0,0.00027397,7]
[334432058,1723095039967,-500.0,0.00027397,7]
[334432059,1723095039977,-503.30511167,0.00027397,7]
[334432060,1723095039986,-500.0,0.00027397,7]
[334432061,1723095039997,-500.0,0.00027397,7]
[334432062,1723095040007,-500.0,0.00027397,7]
[334432063,1723095040017,-500.0,0.00027397,7]
[334432064,1723095040026,-500.0,0.00027397,7]
[334432065,1723095040036,-500.0,0.00027397,7]
[334432066,1723095040045,-500.0,0.00027397,7]
[334432067,1723095040055,-502.39251373,0.00027397,7]
[334432068,1723095040064,-500.0,0.00027397,7]
[334432069,1723095040073,-500.0,0.00027397,7]
[334432070,1723095040082,-500.0,0.00027397,7]
[334432071,1723095040092,-500.0,0.00027397,7]
[334432072,1723095040101,-502.31641083,0.00027397,7]
[334432073,1723095040110,-500.0,0.00027397,7]
[334432074,1723095040120,-500.0,0.00027397,7]
[334432075,1723095040130,-500.0,0.00027397,7]
[334432076,1723095040139,-500.0,0.00027397,7]
[334432077,1723095040149,-475.08023048,0.00027397,7]
[334432078,1723095040158,-635.76,0.00027397,7]
[334432079,1723095040167,-500.0,0.00027397,7]
[334432080,1723095040177,-250.245087,0.00027397,7]
[334432081,1723095040187,-200.0,0.00027397,7]
[334432084,1723095040196,-500.0,0.00027397,7]
[334432087,1723095040205,-500.0,0.00027397,7]
[334432089,1723095040215,-500.0,0.00027397,7]
[334432091,1723095040223,-500.0,0.00027397,7]
[334432092,1723095040233,-500.0,0.00027397,7]
[334432093,1723095040242,-1833.31,0.00027397,7]
[334432094,1723095040253,-500.0,0.00027397,7]
[334432095,1723095040262,-822.2,0.00027397,7]
[334432096,1723095040271,-504.06897648,0.00027397,7]
[334432097,1723095040280,-503.20340676,0.00027397,7]
[334432098,1723095040289,-500.0,0.00027397,7]
[334432099,1723095040298,-503.32153423,0.00027397,7]
[334432100,1723095040307,-500.0,0.00027397,7]
[334432101,1723095040316,-500.0,0.00027397,7]
[334432102,1723095040325,-500.0,0.00027397,7]
[334432103,1723095040335,-501.37555206,0.00027397,7]
[334432104,1723095040344,-500.0,0.00027397,7]
[334432105,1723095040353,-500.0,0.00027397,7]
[334432106,1723095040362,-505.18493295,0.00027397,7]
[334432107,1723095040372,-501.05860132,0.00027397,7]
[334432108,1723095040381,-500.0,0.00027397,7]
[334432109,1723095040390,-500.0,0.00027397,7]
[334432110,1723095040400,-500.0,0.00027397,7]
[334432111,1723095040410,-542.65,0.00027397,7]
[334432112,1723095040419,-501.00813868,0.00027397,7]
[334432113,1723095040430,-504.0236675,0.00027397,7]
[334432114,1723095040441,-500.0,0.00027397,7]
[334432115,1723095040451,-500.0,0.00027397,7]
[334432116,1723095040459,-646.08585244,0.00027397,7]
[334432117,1723095040469,-500.0,0.00027397,7]
[334432118,1723095040478,-500.0,0.00027397,7]
[334432119,1723095040487,-501.67769796,0.00027397,7]
[334432120,1723095040497,-500.0,0.00027397,7]
[334432121,1723095040506,-500.0,0.00027397,7]
[334432122,1723095040515,-500.0,0.00027397,7]
[334432123,1723095040524,-502.71337189,0.00027397,7]
[334432124,1723095040534,-500.0,0.00027397,7]
[334432125,1723095040547,-500.0,0.00027397,7]
[334432126,1723095040556,-500.0,0.00027397,7]
[334432127,1723095040565,-522.909612,0.00027397,7]
[334432128,1723095040574,-554.24,0.00027397,7]
[334432129,1723095040585,-500.0,0.00027397,7]
[334432130,1723095040594,-500.0,0.00027397,7]
[334432131,1723095040603,-1040.95,0.00027397,7]
[334432132,1723095040612,-180.877783,0.00027397,7]
[334432133,1723095040623,-450.0,0.00027397,7]
[334432134,1723095040633,-500.0,0.00027397,7]
[334432135,1723095040644,-180.877783,0.00027397,7]
[334432136,1723095040653,-180.877783,0.00027397,7]
[334432137,1723095040662,-617.07844097,0.00027397,7]
[334432138,1723095040671,-180.877783,0.00027397,7]
[334432139,1723095040680,-180.877783,0.00027397,7]
[334432140,1723095040689,-500.0,0.00027397,7]
[334432141,1723095040698,-180.877783,0.00027397,7]
[334432142,1723095040707,-180.877783,0.00027397,7]
[334432143,1723095040717,-517.03596231,0.00027397,7]
[334432144,1723095040726,-180.877783,0.00027397,7]
[334432145,1723095040736,-180.877783,0.00027397,7]
[334432146,1723095040747,-180.877783,0.00027397,7]
[334432147,1723095040757,-180.877783,0.00027397,7]
[334432148,1723095040767,-180.877783,0.00027397,7]
[334432149,1723095040776,-180.877783,0.00027397,7]
[334432151,1723095040785,-180.877783,0.00027397,7]
[334432153,1723095040795,-180.877783,0.00027397,7]
[334432155,1723095040806,-180.877783,0.00027397,7]
[334432157,1723095040818,-180.877783,0.00027397,7]
[334432159,1723095040828,-180.877783,0.00027397,7]
[334432162,1723095040838,-180.877783,0.00027397,7]
[334432164,1723095040848,-502.49036166,0.00027397,7]
[334432167,1723095040860,-180.877791,0.00027397,7]
[334432171,1723095040871,-500.0,0.00027397,7]
[334432173,1723095040882,-500.0,0.00027397,7]
[334432176,1723095040892,-500.0,0.00027397,7]
[334432179,1723095040901,-501.74726198,0.00027397,7]
[334432181,1723095040912,-625.75641295,0.00027397,7]
[334432183,1723095040921,-500.0,0.00027397,7]
[334432184,1723095040931,-500.0,0.00027397,7]
[334432185,1723095040940,-501.77742682,0.00027397,7]
[334432186,1723095040950,-1095.09,0.00027397,7]
[334432187,1723095040962,-500.0,0.00027397,7]
[334432188,1723095040971,-500.0,0.00027397,7]
[334432189,1723095040981,-500.9180852,0.00027397,7]
[334432190,1723095040990,-500.0,0.00027397,7]
[334432191,1723095041002,-501.85,0.00027397,7]
[334432192,1723095041012,-1482.8,0.00027397,7]
[334432193,1723095041022,-500.0,0.00027397,7]
[334432194,1723095041032,-503.34305989,0.00027397,7]
[334432195,1723095041042,-501.23987814,0.00027397,7]
[334432196,1723095041051,-501.34687126,0.00027397,7]
[334432197,1723095041060,-500.0,0.00027397,7]
[334432198,1723095041070,-629.24,0.00027397,7]
[334432199,1723095041079,-502.46454025,0.00027397,7]
[334432200,1723095041089,-629.24,0.00027397,7]
[334432201,1723095041099,-629.24,0.00027397,7]
[334432202,1723095041109,-629.24,0.00027397,7]
[334432203,1723095041119,-629.24,0.00027397,7]
[334432204,1723095041128,-629.24,0.00027397,7]
[334432205,1723095041138,-629.24,0.00027397,7]
[334432206,1723095041148,-629.24,0.00027397,7]
[334432207,1723095041157,-500.0,0.00027397,7]
[334432208,1723095041167,-629.24,0.00027397,7]
[334432209,1723095041176,-629.24,0.00027397,7]
[334432210,1723095041186,-500.61871886,0.00027397,7]
[334432211,1723095041196,-629.24,0.00027397,7]
[334432212,1723095041206,-629.24,0.00027397,7]
[334432213,1723095041215,-629.24,0.00027397,7]
[334432214,1723095041225,-629.24,0.00027397,7]
[334432215,1723095041235,-613.26,0.00027397,7]
[334432216,1723095041245,-500.0,0.00027397,7]
[334432217,1723095041258,-497.49337936,0.00027397,7]
[334432218,1723095041268,-502.02344127,0.00027397,7]
[334432219,1723095041277,-500.0,0.00027397,7]
[334432220,1723095041287,-500.0,0.00027397,7]
[334432221,1723095041298,-785.05,0.00027397,7]
[334432222,1723095041307,-501.07263207,0.00027397,7]
[334432223,1723095041317,-500.0,0.00027397,7]
[334432224,1723095041326,-500.43,0.00027397,7]
[334432225,1723095041336,-640.29,0.00027397,7]
[334432226,1723095041346,-500.0,0.00027397,7]
[334432227,1723095041356,-153.399951,0.00027397,7]
[334432228,1723095041366,-500.0,0.00027397,7]
[334432229,1723095041376,-500.0,0.00027397,7]
[334432230,1723095041386,-500.0,0.00027397,7]
[334432231,1723095041396,-500.0,0.00027397,7]
[334432232,1723095041406,-500.0,0.00027397,7]
[334432233,1723095041418,-500.0,0.00027397,7]
[334432234,1723095041427,-500.0,0.00027397,7]
[334432235,1723095041437,-500.0,0.00027397,7]
[334432236,1723095041447,-500.0,0.00027397,7]
[334432237,1723095041457,-500.0,0.00027397,7]
[334432238,1723095041468,-500.0,0.00027397,7]
[334432239,1723095041478,-859.85,0.00027397,7]
[334432240,1723095041487,-502.40507291,0.00027397,7]
[334432241,1723095041500,-500.0,0.00027397,7]
[334432242,1723095041512,-500.0,0.00027397,7]
[334432243,1723095041521,-480.83462948,0.00027397,7]
[334432244,1723095041534,-500.0,0.00027397,7]
[334432245,1723095041544,-500.6452803,0.00027397,7]
[334432246,1723095041553,-504.57026045,0.00027397,7]
[334432247,1723095041563,-500.0,0.00027397,7]
[334432248,1723095041572,-500.0,0.00027397,7]
[334432249,1723095041582,-500.0,0.00027397,7]
[334432250,1723095041594,-500.0,0.00027397,7]
[334432251,1723095041604,-500.0,0.00027397,7]
[334432252,1723095041614,-500.0,0.00027397,7]
[334432253,1723095041623,-500.0,0.00027397,7]
[334432254,1723095041633,-500.0,0.00027397,7]
[334432255,1723095041642,-500.0,0.00027397,7]
[334432256,1723095041651,-500.0,0.00027397,7]
[334432257,1723095041662,-500.0,0.00027397,7]
[334432258,1723095041672,-500.0,0.00027397,7]
[334432259,1723095041683,-500.0,0.00027397,7]
[334432260,1723095041694,-500.0,0.00027397,7]
[334432261,1723095041705,-500.0,0.00027397,7]
[334432262,1723095041715,-500.0,0.00027397,7]
[334432263,1723095041724,-500.0,0.00027397,7]
[334432264,1723095041734,-500.0,0.00027397,7]
[334432265,1723095041744,-500.0,0.00027397,7]
[334432266,1723095041758,-500.0,0.00027397,7]
[334432267,1723095041767,-500.0,0.00027397,7]
[334432268,1723095041777,-500.0,0.00027397,7]
[334432269,1723095041786,-500.0,0.00027397,7]
[334432270,1723095041797,-449.92909267,0.00027397,7]
[334432271,1723095041806,-506.65417424,0.00027397,7]
[334432272,1723095041816,-505.43552066,0.00027397,7]
[334432273,1723095041827,-990.18,0.00027397,7]
[334432274,1723095041838,-500.0,0.00027397,7]
[334432275,1723095041849,-500.0,0.00027397,7]
[334432276,1723095041860,-501.01408467,0.00027397,7]
[334432277,1723095041870,-500.0,0.00027397,7]
[334432278,1723095041881,-500.0,0.00027397,7]
[334432279,1723095041891,-502.60982156,0.00027397,7]
[334432280,1723095041901,-500.0,0.00027397,7]
[334432281,1723095041911,-501.72,0.00027397,7]
[334432282,1723095041920,-500.0,0.00027397,7]
[334432283,1723095041933,-500.0,0.00027397,7]
[334432284,1723095041947,-500.0,0.00027397,7]
[334432285,1723095041961,-502.48084563,0.00027397,7]
[334432286,1723095041974,-1057.35,0.00027397,7]
[334432287,1723095041988,-500.55716379,0.00027397,7]
[334432288,1723095042001,-500.0,0.00027397,7]
[334432289,1723095042012,-1352.98,0.00027397,7]
[334432290,1723095042023,-500.0,0.00027397,7]
[334432291,1723095042035,-502.81125657,0.00027397,7]
[334432292,1723095042047,-500.0,0.00027397,7]
[334432293,1723095042060,-500.0,0.00027397,7]
[334432294,1723095042073,-500.0,0.00027397,7]
[334432295,1723095042086,-1174.67,0.00027397,7]
[334432296,1723095042099,-500.0,0.00027397,7]
[334432297,1723095042111,-500.0,0.00027397,7]
[334432298,1723095042123,-613.61,0.00027397,7]
[334432299,1723095042136,-524.95,0.00027397,7]
[334432300,1723095042149,-613.61,0.00027397,7]
[334432301,1723095042161,-500.0,0.00027397,2]
[334432302,1723095042171,-613.61,0.00027397,7]
[334432303,1723095042183,-500.0,0.00027397,14]
[334432304,1723095042195,-613.61,0.00027397,7]
[334432305,1723095042208,-500.0,0.00027397,14]
[334432306,1723095042224,-613.61,0.00027397,7]
[334432307,1723095042237,-500.0,0.00027397,14]
[334432308,1723095042259,-500.0,0.00027397,14]
[334432309,1723095042273,-613.61,0.00027397,7]
[334432310,1723095042283,-500.0,0.00027397,14]
[334432311,1723095042294,-613.61,0.00027397,7]
[334432312,1723095042303,-500.0,0.00027397,14]
[334432313,1723095042315,-613.61,0.00027397,7]
[334432314,1723095042325,-500.0,0.00027397,14]
[334432315,1723095042337,-500.0,0.00027397,14]
[334432316,1723095042349,-613.61,0.00027397,7]
[334432317,1723095042361,-500.0,0.00027397,7]
[334432318,1723095042374,-500.0,0.00027397,14]
[334432319,1723095042385,-613.61,0.00027397,7]
[334432320,1723095042399,-512.88,0.00027397,7]
[334432321,1723095042413,-169.0169841,0.00027397,7]
[334432322,1723095042425,-613.61,0.00027397,7]
[334432323,1723095042438,-500.0,0.00027397,14]
[334432324,1723095042450,-512.88,0.00027397,7]
[334432325,1723095042461,-613.61,0.00027397,7]
[334432326,1723095042472,-500.0,0.00027397,14]
[334432327,1723095042482,-512.88,0.00027397,7]
[334432328,1723095042493,-500.0,0.00027397,14]
[334432329,1723095042506,-613.61,0.00027397,7]
[334432330,1723095042518,-512.88,0.00027397,7]
[334432331,1723095042531,-500.0,0.00027397,14]
[334432332,1723095042543,-613.61,0.00027397,7]
[334432333,1723095042555,-512.88,0.00027397,7]
[334432334,1723095042565,-154.65559031,0.00027397,14]
[334432335,1723095042576,-512.88,0.00027397,7]
[334432336,1723095042589,-1112.92,0.00027397,7]
[334432337,1723095042600,-512.88,0.00027397,7]
[334432338,1723095042612,-512.88,0.00027397,7]
[334432339,1723095042626,-512.88,0.00027397,7]
[334432340,1723095042636,-512.88,0.00027397,7]
[334432341,1723095042647,-512.88,0.00027397,7]
[334432342,1723095042657,-512.88,0.00027397,7]
[334432343,1723095042667,-512.88,0.00027397,7]
[334432344,1723095042678,-512.88,0.00027397,7]
[334432345,1723095042689,-512.88,0.00027397,7]
[334432346,1723095042699,-501.10103205,0.00027397,7]
[334432347,1723095042710,-500.0,0.00027397,7]
[334432348,1723095042720,-721.54,0.00027397,7]
[334432349,1723095042731,-500.0,0.00027397,7]
[334432350,1723095042742,-500.0,0.00027397,7]
[334432351,1723095042756,-151.0,0.00027397,7]
[334432352,1723095042767,-223.963254,0.00027397,7]
[334432353,1723095042779,-502.55844135,0.00027397,7]
[334432354,1723095042790,-500.0,0.00027397,7]
[334432355,1723095042801,-500.0,0.00027397,7]
[334432356,1723095042811,-502.41266225,0.00027397,7]
[334432357,1723095042823,-500.0,0.00027397,7]
[334432358,1723095042834,-500.0,0.00027397,7]
[334432359,1723095042845,-500.0,0.00027397,7]
[334432360,1723095042857,-1863.67,0.00027397,7]
[334432361,1723095042869,-500.0,0.00027397,7]
[334432362,1723095042880,-500.0,0.00027397,7]
[334432363,1723095042891,-500.0,0.00027397,7]
[334432364,1723095042903,-597.33,0.00027397,7]
[334432365,1723095042915,-501.73118128,0.00027397,7]
[334432366,1723095042927,-500.0,0.00027397,7]
[334432367,1723095042938,-526.86447608,0.00027397,7]
[334432368,1723095042949,-500.0,0.00027397,7]
[334432369,1723095042961,-500.0,0.00027397,7]
[334432370,1723095042972,-502.27016223,0.00027397,7]
[334432371,1723095042984,-619.30765322,0.00027397,7]
[334432372,1723095042995,-500.0,0.00027397,7]
[334432373,1723095043007,-500.0,0.00027397,7]
[334432374,1723095043021,-154.83369012,0.00027397,7]
[334432375,1723095043034,-500.89475948,0.00027397,7]
[334432376,1723095043045,-520.31186877,0.00027397,7]
[334432377,1723095043056,-500.0,0.00027397,7]
[334432378,1723095043068,-502.09698884,0.00027397,7]
[334432379,1723095043080,-500.0,0.00027397,7]
[334432380,1723095043091,-501.72656972,0.00027397,7]
[334432382,1723095043102,-500.0,0.00027397,7]
[334432383,1723095043112,-524.17969768,0.00027397,7]
[334432384,1723095043124,-500.0,0.00027397,7]
[334432385,1723095043135,-504.41447953,0.00027397,7]
[334432386,1723095043147,-500.0,0.00027397,7]
[334432387,1723095043158,-500.0,0.00027397,7]
[334432388,1723095043168,-558.81292204,0.00027397,7]
[334432389,1723095043179,-890.51,0.00027397,7]
[334432390,1723095043191,-500.0,0.00027397,7]
[334432391,1723095043202,-500.0,0.00027397,7]
[334432392,1723095043213,-500.0,0.00027397,7]
[334432394,1723095043224,-501.14263449,0.00027397,5]
[334432396,1723095043235,-506.74,0.00027397,7]
[334432398,1723095043248,-644.23271019,0.00027397,7]
[334432400,1723095043260,-443.20168161,0.00027397,7]
[334432402,1723095043271,-1307.23,0.00027397,7]
[334432404,1723095043282,-1271.14,0.00027397,7]
[334432408,1723095043292,-1574.48,0.00027397,7]
[334432411,1723095043302,-500.0,0.00027397,7]
[334432413,1723095043313,-502.04147043,0.00027397,7]
[334432415,1723095043324,-1446.16,0.00027397,7]
[334432417,1723095043337,-500.0,0.00027397,7]
[334432420,1723095043347,-500.0,0.00027397,2]
[334432422,1723095043359,-1859.9,0.00027397,7]
[334432423,1723095043369,-154.436173,0.00027397,2]
[334432424,1723095043381,-504.76325848,0.00027397,7]
[334432425,1723095043392,-500.0,0.00027397,7]
[334432426,1723095043403,-500.0,0.00027397,7]
[334432427,1723095043414,-500.0,0.00027397,7]
[334432428,1723095043424,-500.0,0.00027397,7]
[334432429,1723095043437,-500.0,0.00027397,7]
[334432430,1723095043449,-617.07,0.00027397,7]
[334432432,1723095043459,-500.0,0.00027397,7]
[334432433,1723095043471,-501.61089599,0.00027397,7]
[334432434,1723095043482,-503.32861438,0.00027397,7]
[334432435,1723095043493,-500.0,0.00027397,7]
[334432436,1723095043505,-501.5907601,0.00027397,7]
[334432438,1723095043516,-500.0,0.00027397,7]
[334432440,1723095043526,-500.99867296,0.00027397,7]
[334432441,1723095043538,-500.0,0.00027397,7]
[334432442,1723095043551,-507.93851247,0.00027397,7]
[334432443,1723095043561,-500.0,0.00027397,7]
[334432444,1723095043572,-710.38,0.00027397,7]
[334432445,1723095043583,-500.0,0.00027397,7]
[334432446,1723095043593,-671.53,0.00027397,7]
[334432447,1723095043603,-560.8604586,0.00027397,7]
[334432448,1723095043616,-846.38,0.00027397,7]
[334432449,1723095043626,-500.0,0.00027397,7]
[334432450,1723095043636,-500.0,0.00027397,7]